fUSD/lending_fUSD_20240211
["ID","MTS","AMOUNT","RATE_DAILY","PERIOD"]
[313754810,1707676240269,-1000.0,0.00022999,2]
[313754811,1707676240279,-87904.27116843,0.00023,2]
[313754812,1707676240304,-603.7625,0.00023,2]
[313754813,1707676240422,-6546.69644572,0.00023,2]
[313754814,1707676240432,-10802.60282116,0.00023,2]
[313754905,1707676242639,-442002.94181555,0.00023,2]
[313754907,1707676242651,-2701.97750566,0.00023,2]
[313754910,1707676242670,-3753.24159064,0.00023,2]
[313754912,1707676242682,-6260.91009639,0.00023,2]
[313754951,1707676244716,-9415.1450855,0.00023,2]
[313754988,1707676245530,-287.0,0.00023,2]
[313754989,1707676245581,-46277.48492969,0.00023,2]
[313754990,1707676245593,-314.16775639,0.00023,2]
[313754991,1707676245636,-1146.94746516,0.00023,2]
[313754992,1707676245693,-1099.09661466,0.00023,2]
[313754993,1707676245706,-76360.04650401,0.00023,2]
[313754994,1707676245717,-258.21,0.00023,2]
[313754995,1707676245728,-500.0,0.00023014,2]
[313754996,1707676245738,-150.9,0.00023072,2]
[313754997,1707676245748,-7925.377462,0.0002313,2]
[313754998,1707676245760,-300.0,0.00023179,2]
[313754999,1707676245770,-155.27,0.00023862,2]
[313755000,1707676245779,-1100.0,0.000239,8]
[313755001,1707676245790,-207.65,0.00023935,2]
[313755002,1707676245800,-234.84,0.00023953,2]
[313755003,1707676245809,-202.03248539,0.00024,2]
[313755004,1707676245818,-517.78567072,0.00024,2]
[313755005,1707676245827,-457.29270073,0.000241,2]
[313755006,1707676245838,-3256.65,0.00024384,2]
[313755007,1707676245848,-3226.55,0.00024384,2]
[313755008,1707676245857,-229.45,0.00024417,2]
[313755009,1707676245867,-1000.0,0.0002453,2]
[313755010,1707676245876,-300.0,0.00024549,2]
[313755011,1707676245886,-250.0,0.00024658,2]
[313755012,1707676245896,-210.0,0.00024663,2]
[313755013,1707676245905,-210.0,0.00024663,2]
[313755015,1707676245915,-82231.15612974,0.0002479,2]
[313755017,1707676245924,-12079.84736069,0.0002479,2]
[313755080,1707676274587,100000.0,0.0002234,2]
[313755082,1707676307002,56641.6843,0.0002234,2]
[313755083,1707676326645,225018.1958,0.0002234,2]
[313755084,1707676357960,1226.0057,0.0002234,2]
[313755086,1707676406723,500.0,0.00022342,2]
[313755087,1707676415605,16593.0866,0.0002234,2]
[313755091,1707676550531,195.03,0.00021984,2]
[313755095,1707676983776,312.48659545,0.0002479,30]
[313755096,1707677169206,185.27,0.00021009,2]
[313755103,1707677284274,206.0,0.00022159,2]
[313755115,1707677434463,-386.55237988,0.0002249,2]
[313755116,1707677434473,-303.75186586,0.00022491,2]
[313755117,1707677434483,-4119.69575426,0.00022492,2]
[313755118,1707677434526,-14974.73448943,0.00022492,2]
[313755119,1707677434536,-153.01895408,0.00022496,2]
[313755120,1707677434549,-345.00799253,0.00022585,2]
[313755121,1707677434559,-155.0,0.00022586,2]
[313755122,1707677434568,-966.48247679,0.00022597,2]
[313755123,1707677434579,-719.39,0.00022699,2]
[313755124,1707677434588,-1000.0,0.000227,2]
[313755125,1707677434597,-2095.7687,0.0002275,2]
[313755126,1707677434607,-281.7817,0.0002275,2]
[313755127,1707677434616,-2314.4807,0.0002275,2]
[313755128,1707677434627,-2000.0,0.00022844,2]
[313755129,1707677434636,-999.99,0.00022844,2]
[313755130,1707677434646,-155.0,0.00022848,2]
[313755131,1707677434655,-155.0,0.00022849,2]
[313755132,1707677434665,-184411.71990942,0.0002285,2]
[313755133,1707677434677,-1363.8145,0.0002285,2]
[313755134,1707677434689,-17414.96286329,0.0002285,2]
[313755135,1707677434699,-293.08,0.0002285,2]
[313755136,1707677434709,-250.0,0.00022872,2]
[313755137,1707677434718,-2769.72,0.00022909,2]
[313755138,1707677434727,-723.01,0.00022994,2]
[313755139,1707677434736,-719.53,0.00022997,2]
[313755140,1707677434746,-720.62,0.00022998,2]
[313755141,1707677434756,-718.42,0.00022998,2]
[313755142,1707677434766,-313.61,0.00022998,2]
[313755144,1707677434775,-150.99,0.00022998,2]
[313755146,1707677434784,-499.99,0.00022998,2]
[313755148,1707677434794,-722.62,0.00022999,2]
[313755150,1707677434804,-254.39647983,0.00022999,2]
[313755152,1707677434813,-500.0,0.00023014,2]
[313755154,1707677434823,-153.018954,0.00023018,2]
[313755156,1707677434832,-1798.28,0.00023063,2]
[313755158,1707677434842,-155.27,0.00023095,2]
[313755160,1707677434851,-600.0,0.000231,2]
[313755163,1707677434861,-156.27,0.00023177,2]
[313755165,1707677434870,-185.27,0.00023272,2]
[313755167,1707677434879,-153.018954,0.00023541,2]
[313755169,1707677434888,-2031.56578531,0.00024041,2]
[313755171,1707677434897,-153.018954,0.00024063,2]
[313755173,1707677434907,-400.0,0.00024155,2]
[313755175,1707677434916,-156.27,0.00024336,2]
[313755177,1707677434924,-5402.66,0.00024384,2]
[313755179,1707677434934,-206.0,0.00024524,5]
[313755181,1707677434943,-153.018954,0.00024586,2]
[313755183,1707677434952,-250.0,0.00024658,2]
[313755185,1707677434961,-852.4311,0.00024687,2]
[313755187,1707677434970,-492.67873813,0.00024773,2]
[313755189,1707677434979,-100686.09063739,0.00024784,2]
[313755191,1707677434997,-3364.954,0.00024784,2]
[313755193,1707677435009,-683.42821964,0.00024784,2]
[313755195,1707677435019,-155.0,0.00024785,2]
[313755197,1707677435029,-951.99104097,0.00024785,2]
[313755200,1707677435039,-155.43027217,0.00024785,2]
[313755202,1707677435049,-156.16924712,0.00024785,2]
[313755204,1707677435058,-156.00625032,0.00024785,2]
[313755206,1707677435069,-204.49201258,0.00024785,2]
[313755208,1707677435079,-208.93722991,0.00024785,4]
[313755210,1707677435089,-402.40247371,0.00024785,2]
[313755212,1707677435099,-233.20897845,0.00024785,2]
[313755214,1707677435109,-355.0732788,0.00024785,2]
[313755216,1707677435119,-155.0,0.00024785,2]
[313755218,1707677435129,-1045.91992071,0.00024786,2]
[313755220,1707677435139,-1445.53301625,0.00024787,2]
[313755222,1707677435149,-686.99133453,0.00024787,2]
[313755224,1707677435159,-700.11998778,0.00024787,2]
[313755226,1707677435168,-1387.10464213,0.00024787,2]
[313755228,1707677435178,-311.31196064,0.00024787,2]
[313755230,1707677435188,-413.22910588,0.00024787,2]
[313755232,1707677435198,-746.9663357,0.00024787,2]
[313755234,1707677435209,-932.54314952,0.00024787,2]
[313755236,1707677435219,-197.82252058,0.00024787,2]
[313755237,1707677435229,-46659.42137589,0.00024787,2]
[313755238,1707677435239,-297.0714875,0.00024787,2]
[313755239,1707677435250,-3184.83157822,0.00024787,2]
[313755240,1707677435259,-419.68147873,0.00024787,2]
[313755241,1707677435272,-156.75039401,0.00024787,2]
[313755242,1707677435282,-161.39038017,0.00024787,2]
[313755243,1707677435292,-1064.16944181,0.00024788,2]
[313755244,1707677435302,-2415.0321295,0.00024788,2]
[313755245,1707677435312,-584.84890433,0.00024788,2]
[313755246,1707677435322,-161.27842766,0.00024788,2]
[313755247,1707677435336,-2066.41870896,0.00024789,2]
[313755248,1707677435345,-2607.54162794,0.0002479,2]
[313755249,1707677435355,-720.63,0.0002479,2]
[313755250,1707677435365,-4159.0,0.000248,2]
[313755251,1707677435375,-19536.82921489,0.000248,2]
[313755252,1707677435389,-1654.38365157,0.000248,2]
[313755281,1707677437936,-3346.47869251,0.00022491,2]
[313755282,1707677437946,-908.78713354,0.000248,2]
[313755283,1707677437955,-1160.92700159,0.0002495,2]
[313755284,1707677437964,-168.26749515,0.00025,2]
[313755285,1707677437974,-1909.40818711,0.00025,2]
[313755286,1707677437983,-304.48967897,0.00025,2]
[313755287,1707677437992,-430.58250006,0.00025,2]
[313755288,1707677438001,-938.20137126,0.00025,2]
[313755289,1707677438011,-1591.80252541,0.00025,2]
[313755290,1707677438021,-201.25728617,0.00025,2]
[313755291,1707677438030,-946.10396075,0.00025,2]
[313755292,1707677438039,-1250.0,0.00025,3]
[313755293,1707677438049,-153.018954,0.00025108,2]
[313755294,1707677438058,-156.27,0.00025495,2]
[313755295,1707677438068,-1000.0,0.000255,2]
[313755296,1707677438077,-185.27,0.00025536,2]
[313755297,1707677438087,-153.018954,0.00025631,2]
[313755298,1707677438097,-600.0,0.00025988,2]
[313755299,1707677438107,-153.018954,0.00026153,2]
[313755300,1707677438117,-167.0,0.00026413,2]
[313755301,1707677438126,-216.0,0.00026558,2]
[313755302,1707677438135,-1252.0,0.00026558,2]
[313755303,1707677438144,-1232.0,0.00026558,2]
[313755304,1707677438154,-453.0,0.00026558,2]
[313755305,1707677438163,-6216.471,0.00026558,2]
[313755306,1707677438172,-2127.914,0.00026558,2]
[313755307,1707677438182,-18037.83017387,0.00026558,2]
[313755308,1707677438194,-1773.16982613,0.00026558,2]
[313755309,1707677438203,-1031.918,0.00026558,2]
[313755310,1707677438212,-156.27,0.00026654,2]
[313755311,1707677438221,-153.018954,0.00026676,2]
[313755312,1707677438231,-206.0,0.0002689,9]
[313755313,1707677438240,-1300.0,0.00027,3]
[313755314,1707677438250,-400.0,0.00027174,2]
[313755315,1707677438260,-153.018954,0.00027198,2]
[313755316,1707677438271,-155.27,0.00027205,2]
[313755318,1707677438281,-164.60488637,0.00027397,2]
[313755320,1707677438290,-235.48407169,0.000275,2]
[313755322,1707677438300,-153.018954,0.0002772,2]
[313755325,1707677438310,-531.84117671,0.00027724,2]
[313755326,1707677438320,-2999.62406492,0.00027724,6]
[313755329,1707677438330,-185.27,0.000278,2]
[313755330,1707677438338,-156.27,0.00027812,2]
[313755333,1707677438349,-400.0,0.000279,10]
[313755334,1707677438358,-512.3943654,0.00027969,2]
[313755337,1707677438367,-19756.86928101,0.00028,2]
[313755339,1707677438380,-67881.41547358,0.00028,2]
[313755343,1707677438409,-3444.74485245,0.00028,2]
[313755345,1707677438421,-1943.29667571,0.00028,2]
[313755349,1707677438446,-587.673,0.00028,2]
[313755351,1707677438458,-2745.91000296,0.00028,2]
[313755353,1707677438469,-4900.75780992,0.00028,2]
[313755356,1707677438481,-893.98645331,0.00028,2]
[313755357,1707677438497,-6514.47653035,0.00028,2]
[313755358,1707677438509,-3704.77177377,0.00028,2]
[313755359,1707677438531,-2519.3597331,0.00028,2]
[313755360,1707677438545,-290.08119832,0.00028,2]
[313755361,1707677438557,-256.33619966,0.00028,2]
[313755363,1707677440325,-17179.36469133,0.00028,2]
[313755364,1707677440335,-287.99177805,0.000282,2]
[313755365,1707677441196,-712.00822195,0.000282,2]
[313755366,1707677441205,-153.018954,0.00028243,2]
[313755368,1707677441215,-300.0,0.00028738,2]
[313755369,1707677441224,-300.0,0.00028738,2]
[313755370,1707677441233,-300.0,0.00028738,2]
[313755371,1707677441242,-228.43342937,0.00028738,2]
[313755372,1707677441252,-153.018954,0.00028765,2]
[313755373,1707677441261,-254.53226998,0.00028811,2]
[313755374,1707677441271,-558.63290249,0.00028875,2]
[313755381,1707677441295,-41.36709751,0.00028875,2]
[313755383,1707677441304,-556.51290195,0.000289,10]
[313755387,1707677441316,-343.48709805,0.000289,10]
[313755389,1707677441325,-2021.92078961,0.00028977,6]
[313755402,1707677442800,-395.69416141,0.00028977,6]
[313755403,1707677442809,-179.13735964,0.00028977,5]
[313755404,1707677442819,-193.59654112,0.00028977,6]
[313755405,1707677442828,-994.04623756,0.00028977,6]
[313755406,1707677442837,-151.33095636,0.00028977,6]
[313755407,1707677442846,-259.34103528,0.00028997,5]
[313755408,1707677442855,-1350.0,0.00029,3]
[313755409,1707677442865,-1000.0,0.00029,2]
[313755410,1707677442874,-497.75893976,0.00029001,6]
[313755411,1707677442886,-2110.37994329,0.00029001,6]
[313755412,1707677442949,-944.3182459,0.00029001,6]
[313755413,1707677442959,-256.58514143,0.00029001,5]
[313755414,1707677442968,-1000.0,0.00029001,7]
[313755415,1707677442977,-1000.0,0.00029001,7]
[313755416,1707677442986,-2089.40029542,0.00029001,6]
[313755417,1707677442996,-1000.0,0.00029001,7]
[313755418,1707677443004,-666.27622723,0.00029039,6]
[313755419,1707677443014,-1000.0,0.00029098,7]
[313755420,1707677443024,-1000.0,0.00029122,7]
[313755421,1707677443034,-717.61872783,0.00029142,6]
[313755422,1707677443044,-1000.0,0.00029152,7]
[313755423,1707677443053,-154.9,0.000292,2]
[313755424,1707677443063,-427.46340636,0.00029222,6]
[313755425,1707677443072,-206.0,0.00029255,12]
[313755426,1707677443081,-278.09805598,0.00029274,5]
[313755427,1707677443090,-153.018954,0.00029288,2]
[313755428,1707677443100,-1008.82211059,0.00029323,3]
[313755429,1707677443110,-251.77753448,0.00029367,2]
[313755430,1707677443119,-205.21073047,0.00029367,2]
[313755431,1707677443129,-183.92020066,0.00029367,2]
[313755432,1707677443138,-188.79397857,0.000294,2]
[313755433,1707677443148,-15654.42,0.000294,2]
[313755434,1707677443157,-151.0,0.00029467,7]
[313755435,1707677443167,-151.0,0.00029467,7]
[313755436,1707677443177,-242.796643,0.00029467,7]
[313755437,1707677443187,-242.796643,0.00029467,7]
[313755438,1707677443196,-333.775712,0.00029467,7]
[313755439,1707677443206,-333.775712,0.00029467,7]
[313755440,1707677443215,-310.529724,0.00029467,7]
[313755441,1707677443225,-310.529724,0.00029467,7]
[313755442,1707677443235,-228.636605,0.00029467,7]
[313755443,1707677443244,-228.636605,0.00029467,7]
[313755444,1707677443253,-156.177442,0.00029467,7]
[313755445,1707677443262,-208.558557,0.00029467,7]
[313755446,1707677443272,-208.558557,0.00029467,7]
[313755447,1707677443282,-151.0,0.00029467,7]
[313755448,1707677443291,-215.738843,0.00029467,7]
[313755449,1707677443300,-215.738843,0.00029467,7]
[313755450,1707677443310,-243.577002,0.00029467,7]
[313755451,1707677443319,-243.577002,0.00029467,7]
[313755452,1707677443328,-151.0,0.00029467,7]
[313755453,1707677443338,-151.0,0.00029467,7]
[313755454,1707677443348,-153.989224,0.00029467,7]
[313755455,1707677443358,-151.0,0.00029467,7]
[313755456,1707677443367,-151.0,0.00029467,7]
[313755457,1707677443377,-151.0,0.00029467,7]
[313755458,1707677443387,-1068.930946,0.00029467,7]
[313755459,1707677443396,-1068.930946,0.00029467,7]
[313755460,1707677443405,-459.130846,0.00029467,7]
[313755461,1707677443415,-459.130846,0.00029467,7]
[313755462,1707677443424,-151.0,0.00029467,7]
[313755463,1707677443433,-151.0,0.00029467,7]
[313755464,1707677443443,-9360.766704,0.00029467,7]
[313755465,1707677443452,-9360.766704,0.00029467,7]
[313755466,1707677443462,-397.927756,0.00029467,7]
[313755467,1707677443471,-151.0,0.00029467,7]
[313755468,1707677443480,-397.927756,0.00029467,7]
[313755469,1707677443489,-2807.818296,0.00029467,7]
[313755470,1707677443498,-1190.21307,0.00029467,7]
[313755471,1707677443508,-2807.818296,0.00029467,7]
[313755472,1707677443517,-1190.21307,0.00029467,7]
[313755473,1707677443528,-251.760329,0.00029467,7]
[313755474,1707677443538,-251.760329,0.00029467,7]
[313755475,1707677443548,-151.0,0.00029467,7]
[313755476,1707677443557,-151.0,0.00029467,7]
[313755477,1707677443567,-214.615376,0.00029467,7]
[313755478,1707677443578,-151.0,0.00029467,7]
[313755479,1707677443587,-214.615376,0.00029467,7]
[313755480,1707677443596,-151.0,0.00029467,7]
[313755481,1707677443606,-408.33453,0.00029467,7]
[313755482,1707677443616,-408.33453,0.00029467,7]
[313755483,1707677443625,-9500.0,0.00029467,7]
[313755484,1707677443634,-9500.0,0.00029467,7]
[313755485,1707677443643,-178.042327,0.00029467,7]
[313755486,1707677443652,-178.042327,0.00029467,7]
[313755487,1707677443662,-2431.212968,0.00029467,7]
[313755488,1707677443671,-2431.212968,0.00029467,7]
[313755489,1707677443679,-151.0,0.00029467,7]
[313755490,1707677443688,-151.0,0.00029467,7]
[313755491,1707677443698,-191.672687,0.00029467,7]
[313755492,1707677443708,-191.672687,0.00029467,7]
[313755493,1707677443717,-531.8411767,0.00029472,2]
[313755494,1707677443726,-228.36245335,0.000295,3]
[313755495,1707677443736,-453.0,0.00029558,2]
[313755496,1707677443745,-434.12,0.0002956,2]
[313755497,1707677443754,-512.39436539,0.00029655,2]
[313755498,1707677443763,-200.0,0.000297,2]
[313755499,1707677443773,-153.018954,0.0002981,2]
[313755500,1707677443783,-150.0,0.0002988,2]
[313755501,1707677443792,-1754.29234068,0.000299,2]
[313755502,1707677443801,-200.0,0.0002997,2]
[313755503,1707677443810,-800.0,0.0002997,2]
[313755504,1707677443819,-624.0,0.0002998,120]
[313755505,1707677443829,-360.01041936,0.0003,2]
[313755506,1707677443837,-172.32287853,0.0003,5]
[313755507,1707677443846,-155.0,0.0003,4]
[313755508,1707677443855,-298.85346382,0.0003,30]
[313755509,1707677443865,-9690.3204777,0.0003,2]
[313755510,1707677443874,-3000.0,0.0003,2]
[313755511,1707677443883,-155.0,0.0003,2]
[313755512,1707677443892,-448.82644289,0.0003,4]
[313755513,1707677443901,-1974.21330849,0.0003,4]
[313755514,1707677443911,-327.04934988,0.0003,7]
[313755515,1707677443919,-153.74,0.0003,2]
[313755516,1707677443928,-153.74,0.0003,2]
[313755517,1707677443938,-3000.0,0.0003,2]
[313755518,1707677443947,-3000.0,0.0003,2]
[313755519,1707677443956,-1151.664037,0.0003,2]
[313755520,1707677443965,-4000.0,0.0003,2]
[313755521,1707677443974,-185.27,0.00030064,2]
[313755522,1707677443983,-152.0,0.0003007,3]
[313755523,1707677443992,-150.0,0.00030137,2]
[313755524,1707677444001,-400.0,0.00030193,2]
[313755525,1707677444010,-200.0,0.000302,2]
[313755526,1707677444021,-153.018954,0.00030333,2]
[313755527,1707677444030,-324.41864448,0.00030411,2]
[313755528,1707677444039,-1754.29234065,0.00030503,2]
[313755529,1707677444049,-200.0,0.000307,3]
[313755530,1707677444058,-150.0,0.00030714,2]
[313755531,1707677444067,-153.018954,0.00030855,2]
[313755532,1707677444077,-487.72455848,0.00031,7]
[313755533,1707677444086,-1000.0,0.00031,2]
[313755534,1707677444096,-1400.0,0.00031,3]
[313755535,1707677444105,-1000.0,0.00031,2]
[313755536,1707677444114,-1754.29234065,0.00031105,2]
[313755537,1707677444123,-151.0,0.00031111,7]
[313755538,1707677444133,-151.0,0.00031111,7]
[313755539,1707677444142,-185.619402,0.00031111,7]
[313755540,1707677444152,-185.619402,0.00031111,7]
[313755541,1707677444161,-242.796643,0.00031111,7]
[313755542,1707677444171,-242.796643,0.00031111,7]
[313755543,1707677444180,-333.775712,0.00031111,7]
[313755544,1707677444189,-333.775712,0.00031111,7]
[313755545,1707677444199,-310.529724,0.00031111,7]
[313755546,1707677444208,-310.529724,0.00031111,7]
[313755547,1707677444218,-350.115448,0.00031111,7]
[313755548,1707677444227,-350.115448,0.00031111,7]
[313755549,1707677444236,-234.196225,0.00031111,7]
[313755550,1707677444245,-234.196225,0.00031111,7]
[313755551,1707677444255,-309.955609,0.00031111,7]
[313755552,1707677444264,-309.955609,0.00031111,7]
[313755553,1707677444274,-452.089298,0.00031111,7]
[313755554,1707677444283,-452.089298,0.00031111,7]
[313755555,1707677444292,-158.909019,0.00031111,7]
[313755556,1707677444301,-185.414344,0.00031111,7]
[313755557,1707677444310,-185.414344,0.00031111,7]
[313755558,1707677444319,-214.615376,0.00031111,7]
[313755559,1707677444328,-151.0,0.00031111,7]
[313755560,1707677444337,-214.615376,0.00031111,7]
[313755561,1707677444346,-151.0,0.00031111,7]
[313755562,1707677444355,-408.33453,0.00031111,7]
[313755563,1707677444365,-408.33453,0.00031111,7]
[313755564,1707677444374,-9500.0,0.00031111,7]
[313755565,1707677444383,-9500.0,0.00031111,7]
[313755566,1707677444393,-178.042327,0.00031111,7]
[313755567,1707677444402,-178.042327,0.00031111,7]
[313755568,1707677444411,-2431.212968,0.00031111,7]
[313755569,1707677444421,-2431.212968,0.00031111,7]
[313755570,1707677444430,-151.0,0.00031111,7]
[313755571,1707677444439,-151.0,0.00031111,7]
[313755572,1707677444449,-191.672687,0.00031111,7]
[313755573,1707677444459,-191.672687,0.00031111,7]
[313755574,1707677444468,-200.0,0.000312,3]
[313755575,1707677444478,-531.8411767,0.00031221,2]
[313755576,1707677444487,-200.0,0.00031223,2]
[313755577,1707677444496,-150.0,0.00031291,2]
[313755578,1707677444505,-155.27,0.00031314,2]
[313755579,1707677444515,-512.39436539,0.0003134,2]
[313755580,1707677444525,-152.0,0.00031348,4]
[313755581,1707677444761,-1115.04274213,0.00031372,2]
[313755582,1707677444771,-1051.05754971,0.00031372,2]
[313755583,1707677444780,-153.018954,0.00031378,2]
[313755584,1707677444790,-63686.66917648,0.00031547,2]
[313755585,1707677444799,-200000.0,0.00031547,7]
[313755586,1707677444808,-151.91605,0.00031547,7]
[313755587,1707677444818,-151.0,0.00031547,7]
[313755588,1707677444827,-185.619402,0.00031547,7]
[313755589,1707677444836,-185.619402,0.00031547,7]
[313755590,1707677444845,-151.0,0.00031547,7]
[313755591,1707677444854,-151.0,0.00031547,7]
[313755592,1707677444863,-242.796643,0.00031547,7]
[313755593,1707677444873,-242.796643,0.00031547,7]
[313755594,1707677444882,-333.775712,0.00031547,7]
[313755595,1707677444891,-333.775712,0.00031547,7]
[313755596,1707677444901,-310.529724,0.00031547,7]
[313755597,1707677444910,-310.529724,0.00031547,7]
[313755598,1707677444920,-350.115448,0.00031547,7]
[313755599,1707677444929,-350.115448,0.00031547,7]
[313755600,1707677444938,-234.196225,0.00031547,7]
[313755601,1707677444947,-234.196225,0.00031547,7]
[313755602,1707677444957,-309.955609,0.00031547,7]
[313755603,1707677444966,-309.955609,0.00031547,7]
[313755604,1707677444975,-452.089298,0.00031547,7]
[313755605,1707677444985,-452.089298,0.00031547,7]
[313755606,1707677444995,-185.414344,0.00031547,7]
[313755607,1707677445005,-185.414344,0.00031547,7]
[313755608,1707677445014,-1929.541419,0.00031547,7]
[313755609,1707677445028,-1929.541419,0.00031547,7]
[313755610,1707677445038,-1359.522663,0.00031547,7]
[313755611,1707677445048,-151.0,0.00031547,7]
[313755612,1707677445057,-1359.522663,0.00031547,7]
[313755613,1707677445066,-349.640646,0.00031547,7]
[313755614,1707677445076,-349.640646,0.00031547,7]
[313755615,1707677445085,-381.385212,0.00031547,7]
[313755616,1707677445094,-381.385212,0.00031547,7]
[313755617,1707677445104,-375.080313,0.00031547,7]
[313755618,1707677445112,-375.080313,0.00031547,7]
[313755619,1707677445122,-808.760675,0.00031547,7]
[313755620,1707677445131,-808.760675,0.00031547,7]
[313755621,1707677445141,-599.409437,0.00031547,7]
[313755622,1707677445150,-599.409437,0.00031547,7]
[313755623,1707677445160,-512.611865,0.00031547,7]
[313755624,1707677445170,-512.611865,0.00031547,7]
[313755625,1707677445179,-151.0,0.00031547,7]
[313755626,1707677445188,-151.0,0.00031547,7]
[313755627,1707677445198,-228.636605,0.00031547,7]
[313755628,1707677445207,-228.636605,0.00031547,7]
[313755629,1707677445217,-208.558557,0.00031547,7]
[313755630,1707677445227,-208.558557,0.00031547,7]
[313755631,1707677445236,-151.0,0.00031547,7]
[313755632,1707677445245,-215.738843,0.00031547,7]
[313755633,1707677445255,-215.738843,0.00031547,7]
[313755634,1707677445265,-243.577002,0.00031547,7]
[313755635,1707677445274,-243.577002,0.00031547,7]
[313755636,1707677445283,-151.0,0.00031547,7]
[313755637,1707677445293,-151.0,0.00031547,7]
[313755638,1707677445302,-151.0,0.00031547,7]
[313755639,1707677445311,-151.0,0.00031547,7]
[313755640,1707677445320,-151.0,0.00031547,7]
[313755641,1707677445329,-1068.930946,0.00031547,7]
[313755642,1707677445339,-1068.930946,0.00031547,7]
[313755643,1707677445348,-459.130846,0.00031547,7]
[313755644,1707677445358,-459.130846,0.00031547,7]
[313755645,1707677445367,-151.0,0.00031547,7]
[313755646,1707677445376,-151.0,0.00031547,7]
[313755647,1707677445386,-9360.766704,0.00031547,7]
[313755648,1707677445396,-9360.766704,0.00031547,7]
[313755649,1707677445405,-397.927756,0.00031547,7]
[313755650,1707677445415,-151.0,0.00031547,7]
[313755651,1707677445424,-397.927756,0.00031547,7]
[313755652,1707677445433,-2807.818296,0.00031547,7]
[313755653,1707677445442,-1190.21307,0.00031547,7]
[313755654,1707677445451,-2807.818296,0.00031547,7]
[313755655,1707677445460,-1190.21307,0.00031547,7]
[313755656,1707677445469,-251.760329,0.00031547,7]
[313755657,1707677445478,-251.760329,0.00031547,7]
[313755658,1707677445487,-151.0,0.00031547,7]
[313755659,1707677445497,-151.0,0.00031547,7]
[313755660,1707677445506,-214.615376,0.00031547,7]
[313755661,1707677445515,-151.0,0.00031547,7]
[313755662,1707677445526,-214.615376,0.00031547,7]
[313755663,1707677445536,-151.0,0.00031547,7]
[313755665,1707677445549,-408.33453,0.00031547,7]
[313755667,1707677445558,-408.33453,0.00031547,7]
[313755668,1707677445567,-9500.0,0.00031547,7]
[313755669,1707677445577,-9500.0,0.00031547,7]
[313755670,1707677445586,-178.042327,0.00031547,7]
[313755671,1707677445596,-178.042327,0.00031547,7]
[313755672,1707677445605,-2431.212968,0.00031547,7]
[313755673,1707677445615,-2431.212968,0.00031547,7]
[313755674,1707677445626,-151.0,0.00031547,7]
[313755675,1707677445635,-151.0,0.00031547,7]
[313755676,1707677445644,-287.290125,0.00031547,7]
[313755677,1707677445654,-151.0,0.00031547,7]
[313755678,1707677445663,-210.278251,0.00031547,7]
[313755679,1707677445673,-191.672687,0.00031547,7]
[313755680,1707677445683,-191.672687,0.00031547,7]
[313755681,1707677445691,-1978.648104,0.00031547,7]
[313755682,1707677445700,-1978.648104,0.00031547,7]
[313755683,1707677445711,-155.489691,0.00031547,7]
[313755684,1707677445720,-765.39669,0.00031547,7]
[313755685,1707677445729,-206.0,0.0003162,16]
[313755686,1707677445738,-180.0,0.00031644,2]
[313755687,1707677445748,-268.78552311,0.0003169,4]
[313755688,1707677445757,-153.88584179,0.00031691,2]
[313755689,1707677445766,-152.75661,0.00031691,2]
[313755690,1707677445779,-200.0,0.000317,4]
[313755691,1707677445788,-2543.672282,0.000317,2]
[313755692,1707677445798,-1754.29234065,0.00031708,3]